[Event "Caplin Hastings Masters 2023-24"]
[Site "Hastings"]
[Date "2023.12.29"]
[Round "2.47"]
[White "Dewangan, Aayush"]
[Black "Sivanandan, Bodhana"]
[Result "0-1"]
[ECO "B13"]
[WhiteElo "1655"]
[BlackElo "1857"]
[Annotator "NA"]
[PlyCount "118"]
[EventDate "2023.12.18"]
[EventType "swiss"]
[EventCountry "ENG"]
[SourceTitle "playchess.com"]
[Source "ChessBase"]
[SourceQuality "1"]
[TimeControl "40/6000+30:3000+30"]

1. e4 {[%emt 0:00:19]} c6 {[%emt 0:06:31]} 2. d4 {[%emt 0:00:43]} d5 {[%emt 0:01:05]} 3. exd5 {[%emt 0:00:10]} cxd5 {[%emt 0:00:14]} 4. Bd3 {[%emt 0:00:18]} Nc6 {[%emt 0:00:29]} 5. c3 {[%emt 0:00:05]} Qc7 {[%emt 0:00:35]} 6. h3 {[%emt 0:00:06]} g6 {[%emt 0:00:54]} 7. Nf3 {[%emt 0:00:30]} Bf5 {[%emt 0:00:39]} 8. O-O {[%emt 0:01:08]} e6 {[%emt 0:01:33]} 9. Re1 {[%emt 0:00:56]} Bxd3 {[%emt 0:01:54]} 10. Qxd3 {[%emt 0:00:10]} Bg7 {[%emt 0:02:24]} 11. Be3 {[%emt 0:05:17]} Nf6 {[%emt 0:04:01]} 12. Nbd2 {[%emt 0:02:13]} O-O {[%emt 0:01:43]} 13. b4 {[%emt 0:14:53]} Rac8 {[%emt 0:05:11]} 14. Rac1 {[%emt 0:09:11]} Rfd8 {[%emt 0:08:01]} 15. a4 {[%emt 0:10:05]} Ne7 {[%emt 0:10:25]} 16. Ne5 {[%emt 0:02:10]} Nf5 {[%emt 0:02:51]} 17. Bf4 {[%emt 0:07:30]} Qe7 {[%emt 0:04:52]} 18. g4 {[%emt 0:11:08]} Nd6 {[%emt 0:02:06]} 19. f3 {[%emt 0:03:36]} Nd7 {[%emt 0:03:41]} 20. Nb3 {[%emt 0:09:25]} Nxe5 {[%emt 0:02:58]} 21. Bxe5 {[%emt 0:00:10]} Nc4 {[%emt 0:02:47]} 22. Bxg7 {[%emt 0:01:16]} Kxg7 {[%emt 0:00:15]} 23. f4 {[%emt 0:03:08]} Qf6 {[%emt 0:14:08]} 24. Rf1 {[%emt 0:03:46]} Nd6 {[%emt 0:04:57]} 25. Nd2 {[%emt 0:00:46]} Rc7 {[%emt 0:01:59]} 26. Qg3 {[%emt 0:01:51]} Rdc8 {[%emt 0:02:54]} 27. Rf3 {[%emt 0:00:29]} Nc4 {[%emt 0:01:58]} 28. Nxc4 {[%emt 0:04:59]} Rxc4 {[%emt 0:00:22]} 29. f5 {[%emt 0:03:37]} exf5 {[%emt 0:07:16]} 30. gxf5 {[%emt 0:00:15]} g5 {[%emt 0:01:02]} 31. h4 {[%emt 0:04:54]} h6 {[%emt 0:00:12]} 32. Rd1 {[%emt 0:02:32]} Kh7 {[%emt 0:02:16]} 33. hxg5 {[%emt 0:02:28]} Qxg5 {[%emt 0:00:20]} 34. Qxg5 {[%emt 0:00:49]} hxg5 {[%emt 0:00:06]} 35. Rdd3 {[%emt 0:01:04]} Re8 {[%emt 0:01:14]} 36. Kg2 {[%emt 0:03:06]} Kg7 {[%emt 0:01:06]} 37. Rde3 {[%emt 0:01:41]} Rxe3 {[%emt 0:01:02]} 38. Rxe3 {[%emt 0:00:02]} Kf6 {[%emt 0:00:46]} 39. Re5 {[%emt 0:02:01]} Rxc3 {[%emt 0:00:28]} 40. Rxd5 {[%emt 0:00:09]} Rc4 {[%emt 0:00:31]} 41. Rb5 {[%emt 0:15:01]} b6 {[%emt 0:03:55]} 42. a5 {[%emt 0:05:15]} Rxd4 {[%emt 0:02:42]} 43. axb6 {[%emt 0:01:56]} axb6 {[%emt 0:00:07]} 44. Rxb6+ {[%emt 0:05:19]} Kxf5 {[%emt 0:00:09]} 45. b5 {[%emt 0:03:19]} Rb4 {[%emt 0:02:26]} 46. Kh2 {[%emt 0:22:18]} Ke5 {[%emt 0:03:03]} 47. Kg3 {[%emt 0:01:10]} f5 {[%emt 0:02:03]} 48. Rg6 {[%emt 0:00:31]} g4 {[%emt 0:00:18]} 49. b6 {[%emt 0:00:27]} Rb3+ {[%emt 0:00:21]} 50. Kf2 {[%emt 0:00:41]} Kf4 {[%emt 0:00:37]} 51. Re6 {[%emt 0:00:15]} Rb2+ {[%emt 0:00:14]} 52. Kf1 {[%emt 0:00:31]} Kf3 {[%emt 0:00:14]} 53. Re5 {[%emt 0:00:31]} f4 {[%emt 0:00:12]} 54. Re6 {[%emt 0:00:34]} g3 {[%emt 0:00:07]} 55. Re1 {[%emt 0:00:19]} Rxb6 {[%emt 0:00:18]} 56. Ra1 {[%emt 0:00:10]} g2+ {[%emt 0:01:21]} 57. Kg1 {[%emt 0:00:07]} Kg3 {[%emt 0:00:11]} 58. Ra3+ {[%emt 0:00:26]} f3 {[%emt 0:00:07]} 59. Ra1 {[%emt 0:00:13]} f2# {[%emt 0:00:06]} 0-1

[Event "Caplin Hastings Masters 2023-24"]
[Site "Hastings"]
[Date "2023.12.29"]
[Round "2.49"]
[White "Seo, Juwon"]
[Black "Vasiliadis, Theodoros"]
[Result "0-1"]
[ECO "B32"]
[WhiteElo "1405"]
[BlackElo "1845"]
[Annotator "NA"]
[PlyCount "104"]
[EventDate "2023.12.18"]
[EventType "swiss"]
[EventCountry "ENG"]
[SourceTitle "playchess.com"]
[Source "ChessBase"]
[SourceQuality "1"]
[TimeControl "40/6000+30:3000+30"]

1. e4 {[%emt 0:00:24]} c5 {[%emt 0:00:01]} 2. Nf3 {[%emt 0:00:05]} Nc6 {[%emt 0:00:02]} 3. d4 cxd4 {[%emt 0:00:02]} 4. Nxd4 {[%emt 0:00:03]} e5 {[%emt 0:00:03]} 5. Nb5 {[%emt 0:00:03]} d6 {[%emt 0:00:01]} 6. N1c3 {[%emt 0:00:03]} a6 {[%emt 0:00:07]} 7. Na3 {[%emt 0:00:04]} Be7 {[%emt 0:00:04]} 8. Nd5 {[%emt 0:00:02]} Nf6 {[%emt 0:00:02]} 9. Nxf6+ {[%emt 0:00:03]} Bxf6 {[%emt 0:00:03]} 10. Nc4 {[%emt 0:00:04]} O-O {[%emt 0:00:04]} 11. Nxd6 {[%emt 0:00:02]} Qc7 {[%emt 0:00:04]} 12. Nxc8 {[%emt 0:00:03]} Rd8 {[%emt 0:00:18]} 13. Bd3 {[%emt 0:00:03]} Raxc8 {[%emt 0:00:03]} 14. Bd2 {[%emt 0:00:05]} Nd4 {[%emt 0:00:02]} 15. Rc1 {[%emt 0:00:02]} Rd6 {[%emt 0:00:03]} 16. O-O {[%emt 0:00:03]} Qd7 {[%emt 0:00:09]} 17. Bb4 {[%emt 0:00:04]} Rdc6 {[%emt 0:00:03]} 18. c3 {[%emt 0:00:02]} Bg5 {[%emt 0:00:02]} 19. Rb1 {[%emt 0:00:03]} Ne6 {[%emt 0:00:02]} 20. Bc2 {[%emt 0:00:03]} Qc7 {[%emt 0:00:02]} 21. Qg4 {[%emt 0:00:05]} Be7 {[%emt 0:00:02]} 22. Bxe7 {[%emt 0:00:05]} Qxe7 {[%emt 0:00:05]} 23. Rbd1 {[%emt 0:00:06]} R8c7 {[%emt 0:00:06]} 24. Rd2 {[%emt 0:00:05]} Nf4 {[%emt 0:00:04]} 25. Rfd1 {[%emt 0:00:03]} h5 {[%emt 0:00:04]} 26. Rd8+ {[%emt 0:00:03]} Kh7 {[%emt 0:00:03]} 27. Qf3 {[%emt 0:00:02]} Qg5 {[%emt 0:00:03]} 28. g3 {[%emt 0:00:02]} Rf6 {[%emt 0:00:07]} 29. Qe3 {[%emt 0:00:04]} Nh3+ {[%emt 0:00:03]} 30. Kg2 {[%emt 0:00:02]} Rxf2+ {[%emt 0:00:05]} 31. Qxf2 {[%emt 0:00:23]} Nxf2 {[%emt 0:00:03]} 32. Kxf2 {[%emt 0:00:04]} Rc6 {[%emt 0:00:13]} 33. R8d3 Rf6+ {[%emt 0:01:11]} 34. Kg2 h4 {[%emt 0:00:01]} 35. R1d2 {[%emt 0:00:17]} Qg4 {[%emt 0:00:03]} 36. Re3 {[%emt 0:00:04]} h3+ {[%emt 0:00:03]} 37. Kg1 {[%emt 0:00:02]} Qc8 {[%emt 0:00:03]} 38. Rdd3 {[%emt 0:00:09]} Qc5 {[%emt 0:00:04]} 39. b4 {[%emt 0:00:05]} Qb6 {[%emt 0:00:02]} 40. c4 {[%emt 0:00:02]} Qxb4 {[%emt 0:00:03]} 41. Bb3 {[%emt 0:00:04]} Qc5 {[%emt 0:00:02]} 42. Bd1 {[%emt 0:00:04]} Qxc4 {[%emt 0:00:02]} 43. g4 {[%emt 0:00:04]} Qc5 {[%emt 0:00:03]} 44. g5 {[%emt 0:00:02]} Rf4 {[%emt 0:00:02]} 45. Rc3 {[%emt 0:00:22]} Qb6 {[%emt 0:00:02]} 46. Rb3 {[%emt 0:00:03]} Qa7 {[%emt 0:00:07]} 47. Be2 {[%emt 0:00:03]} g6 {[%emt 0:00:03]} 48. Kh1 {[%emt 0:00:02]} Kg7 {[%emt 0:00:02]} 49. a4 {[%emt 0:00:03]} Qd4 {[%emt 0:00:05]} 50. Rbd3 {[%emt 0:00:04]} Qa1+ {[%emt 0:00:03]} 51. Rd1 {[%emt 0:00:06]} Qxd1+ {[%emt 0:00:05]} 52. Bxd1 {[%emt 0:00:03]} Rf1# {[%emt 0:00:04]} 0-1

[Event "Caplin Hastings Masters 2023-24"]
[Site "Hastings"]
[Date "2023.12.30"]
[Round "3.1"]
[White "Lagarde, Maxime"]
[Black "Willow, Jonah B"]
[Result "1/2-1/2"]
[ECO "A13"]
[WhiteElo "2640"]
[BlackElo "2427"]
[Annotator "TA"]
[PlyCount "69"]
[EventDate "2023.12.18"]
[EventType "swiss"]
[EventCountry "ENG"]
[SourceTitle "playchess.com"]
[Source "ChessBase"]
[SourceQuality "1"]
[TimeControl "40/6000+30:3000+30"]

{[%evp 9,69,13,29,-7,6,-10,25,39,31,36,45,46,54,63,57,20,46,54,36,38,87,83,85,94,89,89,137,99,108,100,126,104,102,88,187,88,108,30,40,22,18,22,19,18,29,5,14,16,12,0,0,0,800,0,0,0,0,0,0,-14,-27,-60]} 1. c4 {[%emt 0:00:02]} e6 {[%emt 0:00:41]} 2. Nc3 {[%emt 0:00:09]} Bb4 {[%emt 0:01:58]} 3. e4 {[%emt 0:00:10]} Ne7 {[%emt 0:00:21]} 4. Nf3 {[%emt 0:00:05]} O-O {[%emt 0:06:23]} 5. d4 {[%emt 0:00:11] [#]} c5 $146 {[%emt 0:01:00]} ({Predecessor:} 5... d5 6. e5 c5 7. a3 Bxc3+ 8. bxc3 h6 9. Bd3 dxc4 10. Bxc4 b6 11. Qe2 Bb7 {1-0 Belous,V (2586)-Riazantsev,A (2692) RUS-ch Higher League 67th 2014 (7)}) 6. Bd3 {[%emt 0:12:11] A13: English Opening: 1...e6.} cxd4 {[%emt 0:08:37]} 7. Nxd4 {[%emt 0:00:44]} d5 {[%emt 0:04:34]} (7... Nbc6 $5 {[%cal Rc6d4]} 8. a3 Bxc3+ 9. bxc3 d6 $11) 8. exd5 {[%emt 0:01:06] White has an edge.} exd5 {[%emt 0:00:40]} 9. cxd5 {[%emt 0:00:07]} Qxd5 {[%emt 0:19:22]} 10. O-O {[%emt 0:01:24]} Bxc3 {[%emt 0:00:03]} 11. bxc3 {[%emt 0:00:10]} Nbc6 {[%emt 0:04:49]} 12. Ba3 {[%emt 0:12:54]} Rd8 {[%emt 0:03:36]} 13. Re1 {[%emt 0:19:47]} Ng6 {[%emt 0:04:07]} 14. Be4 {[%emt 0:17:43]} Qg5 {[%emt 0:12:38]} (14... Qa5 $14 {might be stronger.} 15. Nxc6 {[%mdl 64] Discovered Attack} bxc6) 15. Rb1 $16 {[%emt 0:05:54]} Nxd4 {[%emt 0:03:02]} 16. cxd4 {[%emt 0:00:43]} Be6 {[%emt 0:03:07]} 17. Rxb7 {[%emt 0:09:16]} Qa5 {[%emt 0:04:08]} ({Black should try} 17... Nf4 18. Kh1 Ng6) 18. Bc5 {[%emt 0:08:23] This pair of bishops is nice.} Qxa2 {[%emt 0:06:24]} 19. Qf3 {[%emt 0:02:44]} Qd2 {[%emt 0:05:27][%cal Rd2e1] [#] Dodges g3} 20. Reb1 {[%emt 0:08:43] Black must now prevent R7b2. White is much more active.} Qg5 {[%emt 0:07:53]} 21. Qe3 {[%emt 0:03:31]} Qh5 {[%emt 0:04:43]} (21... h6 $16) 22. f3 {[%emt 0:02:51] Black is weak on the dark squares} (22. h3 $18) 22... a6 {[%emt 0:01:36] Wards off R7b5} 23. R7b2 {[%emt 0:02:29]} (23. Re1 $16) 23... Bd5 $11 {[%emt 0:00:50]} 24. g4 {[%emt 0:00:15]} Qh4 {[%emt 0:03:10]} 25. Bxd5 {[%emt 0:00:13]} Rxd5 {[%emt 0:00:01]} 26. Qe4 {[%emt 0:00:22]} Qd8 {[%emt 0:01:10]} 27. Rb7 {[%emt 0:01:17]} h5 {[%emt 0:01:25]} 28. R1b6 {[%emt 0:00:31][%cal Ob7f7] Rxf7! would be deadly.} Qg5 {[%emt 0:00:56]} 29. h4 {[%emt 0:00:30]} Qc1+ {[%emt 0:00:49]} 30. Kf2 {[%emt 0:00:13] Hoping for Rxf7.} Rad8 $2 {[%emt 0:00:42][%mdl 8192] [#]} (30... hxg4 $11 31. Rxf7 (31. Qxd5 $2 g3+ 32. Kg2 Nf4+ 33. Kxg3 Nxd5 $19) (31. fxg4 Rad8 $11) 31... g3+ 32. Kg2 Nxh4+ 33. Kh3 (33. Qxh4 $2 Qd2+ 34. Kh3 Rg5 $19) 33... Qh1+ 34. Kg4 Ng2 35. Kxg3 (35. Qxd5 $2 Qh4+ 36. Kf5 Ne3+ 37. Ke5 Nxd5 $19) (35. Rf8+ Rxf8 36. Qxd5+ Kh8 $17) 35... Nf4 36. Rxf4 (36. Qxf4 Qg1+ 37. Kh4 g5+ 38. Kh3 gxf4 39. Rxf4 Rh5+ 40. Rh4 Qh1+ 41. Kg3 Qxh4+ 42. Kg2 Qg5+ 43. Kf1 Rh2) 36... Qg1+ 37. Kh3 (37. Kh4 Qh2+ 38. Kg4 Qg2+ 39. Kh4 g5+ 40. Kh5 Qh2+ $17) 37... Qh1+ 38. Kg3 Qg1+ 39. Kh3 (39. Kh4 Qh2+ 40. Kg4 Qg2+ 41. Kh4 g5+ 42. Kh5 Qh2+ $17) 39... Qh1+ 40. Kg3) 31. Rb8 $2 {[%emt 0:00:28]} (31. Rxa6 $2 {perishes.} Rxc5 32. Rxg6 (32. dxc5 $2 Rd2+ $19) 32... Rc2+ 33. Kg3 Qd2 $19) (31. Rxf7 $1 $18 Nf4 32. Qxf4 (32. Rxf4 Rxc5 33. Rf5 Rc2+ 34. Kg3 Qg1+ 35. Kf4 Qc1+ 36. Kg3 Qg1+ 37. Kf4 Qc1+ 38. Kg3 $11) 32... Qxf4 33. Rxf4) 31... Nf4 {[%emt 0:00:26] And now ...Qd2+ would win.} 32. Kg3 {[%emt 0:00:49] aiming for Rb1. The board is on fire.} Ne6 {[%emt 0:00:26][%cal Oh5g4]} 33. Rxd8+ {[%emt 0:00:31]} (33. Qxd5 $2 {leads to mate.} Qg1+ 34. Kh3 Nf4#) (33. Rb1 $5 Qc4 $8 34. R1b4 $11) 33... Rxd8 {[%emt 0:00:01]} 34. Rxe6 {[%emt 0:00:23]} fxe6 {[%emt 0:00:35]} 35. Qxe6+ {[%emt 0:00:03] Weighted Error Value: White=0.38/Black=0.15 (very precise)} 1/2-1/2

[Event "Caplin Hastings Masters 2023-24"]
[Site "Hastings"]
[Date "2023.12.30"]
[Round "3.2"]
[White "Wadsworth, Matthew J"]
[Black "Gupta, Abhijeet"]
[Result "1/2-1/2"]
[ECO "E92"]
[WhiteElo "2448"]
[BlackElo "2596"]
[Annotator "TA"]
[PlyCount "117"]
[EventDate "2023.12.18"]
[EventType "swiss"]
[EventCountry "ENG"]
[SourceTitle "playchess.com"]
[Source "ChessBase"]
[SourceQuality "1"]
[TimeControl "40/6000+30:3000+30"]

{[%evp 24,117,14,18,30,0,8,-15,-13,-15,0,-12,-18,-22,17,20,8,33,71,36,74,47,54,24,87,84,106,133,140,137,137,134,116,0,0,0,0,-28,-36,-12,0,0,102,102,102,102,102,102,102,102,102,102,148,148,1001,552,504,395,1099,947,1922,170,170,170,170,170,170,170,170,170,170,170,170,170,170,106,45,39,39,39,39,0,0,0,0,0,0,0,0,0,0,0,0,0,10,0]} 1. d4 {[%emt 0:00:55]} Nf6 {[%emt 0:00:38]} 2. c4 {[%emt 0:00:18]} g6 {[%emt 0:00:20]} 3. Nc3 {[%emt 0:00:07]} Bg7 {[%emt 0:01:06]} 4. e4 {[%emt 0:01:02]} d6 {[%emt 0:00:05]} 5. Nf3 {[%emt 0:00:25]} O-O {[%emt 0:00:45]} 6. Be2 {[%emt 0:05:31]} e5 {[%emt 0:00:16]} 7. Be3 {[%emt 0:00:10]} exd4 {[%emt 0:01:04]} 8. Nxd4 {[%emt 0:00:22]} Re8 {[%emt 0:00:11]} 9. f3 {[%emt 0:01:20]} c6 {[%emt 0:00:23]} 10. Bf2 {[%emt 0:00:35]} d5 {[%emt 0:03:42]} 11. exd5 {[%emt 0:00:28]} cxd5 {[%emt 0:00:04]} 12. O-O {[%emt 0:00:20]} Nc6 {[%emt 0:04:02]} 13. c5 {[%emt 0:00:49]} Bd7 {[%emt 0:02:36] E92: King's Indian: Classical: 6 Be2 e5: 7 dxe5, 7 Be3 and Petrosian System without 7...Nbd7.} 14. Bb5 {[%emt 0:06:54]} Nh5 {[%emt 0:05:43]} 15. Bxc6 {[%emt 0:10:31]} (15. Nde2 $5 {[%cal Rd1d5]}) 15... bxc6 {[%emt 0:01:25]} 16. Qd2 {[%emt 0:00:37] Wards off Nf4} Qc7 {[%emt 0:07:48] [#]} 17. Nce2 $146 {[%emt 0:09:26]} ({Predecessor:} 17. Nde2 Be5 18. g3 Ng7 19. Bd4 Nf5 20. Bxe5 Qxe5 21. Rae1 Ne3 22. Rf2 Nc4 23. Qc1 {1-0 Postny,E (2600)-Jenni,F (2456) Titled Tuesday intern op 21st April blitz 2020 (1)}) 17... Be5 {[%emt 0:04:52] This pair of bishops is nice.} 18. g3 {[%emt 0:04:59]} Re7 {[%emt 0:01:08]} 19. b4 {[%emt 0:07:57]} a5 {[%emt 0:01:09]} 20. a3 {[%emt 0:01:07][%cal Ba2a3,Ba3b4,Bb4b5,Bb5b6][%mdl 32]} Ree8 {[%emt 0:00:31]} 21. Rac1 {[%emt 0:06:22][%cal Ob4b5]} axb4 {[%emt 0:07:37]} 22. axb4 {[%emt 0:00:01]} Ng7 {[%emt 0:01:50]} 23. Rfe1 {[%emt 0:05:44][%cal Ob4b5]} h5 {[%emt 0:02:38] [#]} (23... Ra6 $11) 24. b5 $1 $16 {[%emt 0:03:48]} h4 {[%emt 0:00:54]} (24... cxb5 25. c6) 25. b6 {[%emt 0:05:12]} Qb8 {[%emt 0:00:04]} 26. Ra1 {[%emt 0:15:31]} Rxa1 {[%emt 0:00:47]} 27. Rxa1 {[%emt 0:01:33]} Ne6 {[%emt 0:01:21]} 28. Nxe6 {[%emt 0:07:18]} ({White has to play} 28. f4 $16 Bf6 29. Qb4) 28... Bxa1 $11 {[%emt 0:03:48]} 29. Nc7 {[%emt 0:00:07]} Re7 {[%emt 0:08:52]} 30. gxh4 {[%emt 0:01:42]} Be5 {[%emt 0:08:56]} 31. Bg3 $1 {[%emt 0:01:34][%cal Bf2g3,Bg3c7,Bc7d6][%mdl 32]} Bxc7 {[%emt 0:00:24]} (31... Qf8 {looks sharper.} 32. Kf2 Bc8 33. Qg5 Bf5) 32. Bxc7 {[%emt 0:00:44]} Qe8 {[%emt 0:01:02] Black is weak on the dark squares} (32... Qa8 $1 $11 {keeps the balance.}) 33. Kf2 $1 $16 {[%emt 0:01:29] b7 would be deadly. White is much more active.} Bc8 {[%emt 0:03:24]} 34. Bd6 {[%emt 0:03:56]} Rxe2+ {[%emt 0:02:08]} 35. Qxe2 {[%emt 0:00:47]} Qxe2+ {[%emt 0:00:48]} 36. Kxe2 {[%emt 0:00:06][%mdl 4096] Endgame KB-KB} Kg7 {[%emt 0:00:02]} 37. Ke3 {[%emt 0:01:27]} Kf6 {[%emt 0:01:24] [#]} ({Better is} 37... f6) 38. Kf4 $1 {[%emt 0:01:18]} Ke6 $2 {[%emt 0:00:28][%mdl 8192] [#]} (38... d4 $16 39. Ke4 d3 40. Kxd3 Kf5) 39. Kg5 $1 $18 {[%emt 0:02:37]} d4 {[%emt 0:04:26]} 40. f4 {[%emt 0:02:07][%cal Of4f5]} Kd5 $2 {[%emt 0:21:09] [#]} (40... f5 41. Be5 (41. Kxg6 $2 {too greedy.} d3 $19) 41... d3) 41. f5 $1 {[%emt 0:52:29][%mdl 512]} gxf5 {[%emt 0:54:30]} (41... d3 42. fxg6) 42. Kf4 $2 {[%emt 0:00:00]} (42. Bf4 {Black must now prevent h5.} d3 43. h5) 42... d3 {[%emt 0:00:00] aiming for ...d2.} 43. Ke3 {[%emt 0:00:00]} Ba6 {[%emt 0:00:00]} 44. h5 {[%emt 0:00:00]} Ke6 {[%emt 0:00:00]} 45. Bf4 {[%emt 0:00:00]} f6 {[%emt 0:00:00]} 46. Kd2 {[%emt 0:00:00]} Kf7 {[%emt 0:00:00]} 47. Be3 {[%emt 0:00:00]} Kg7 {[%emt 0:00:00]} 48. Ke1 {[%emt 0:00:00] h6+ is the strong threat.} Kh7 {[%emt 0:00:00]} 49. Bd4 {[%emt 0:00:00]} ({White should try} 49. Bd2 $18) 49... Kh6 $16 {[%emt 0:00:00]} 50. Bxf6 {[%emt 0:00:00] And now Bc3 would win.} Kxh5 {[%emt 0:00:00]} 51. Bc3 {[%emt 0:00:00] Threatens to win with Kf2.} Kg4 {[%emt 0:00:00]} 52. Kf2 {[%emt 0:00:00] Hoping for Kg2.} Kh3 {[%emt 0:00:00] The position is equal.} 53. Kg1 {[%emt 0:00:00]} Bc8 {[%emt 0:00:00]} 54. Bd2 {[%emt 0:00:00]} Ba6 {[%emt 0:00:00]} 55. Be3 {[%emt 0:00:00]} Bc8 {[%emt 0:00:00]} 56. Bc1 {[%emt 0:00:00]} Ba6 {[%emt 0:00:00]} 57. Bd2 {[%emt 0:00:00]} Bc8 {[%emt 0:00:00]} 58. Be3 {[%emt 0:00:00]} Ba6 {[%emt 0:00:00]} 59. Bd2 {[%emt 0:00:00] White really could win this.   Weighted Error Value: White=0.24 (precise) /Black=0.12 (very precise)} 1/2-1/2

[Event "Caplin Hastings Masters 2023-24"]
[Site "Hastings"]
[Date "2023.12.30"]
[Round "3.3"]
[White "Zhang, Pengxiang"]
[Black "Derakhshani, Borna"]
[Result "1-0"]
[ECO "B33"]
[WhiteElo "2558"]
[BlackElo "2380"]
[Annotator "TA"]
[PlyCount "75"]
[EventDate "2023.12.18"]
[EventType "swiss"]
[EventCountry "ENG"]
[SourceTitle "playchess.com"]
[Source "ChessBase"]
[SourceQuality "1"]
[TimeControl "40/6000+30:3000+30"]

{[%evp 24,75,22,12,16,23,30,9,29,27,21,33,34,-20,27,27,27,26,33,28,48,0,47,47,105,0,149,145,341,329,314,295,287,281,285,264,389,271,427,212,198,187,391,387,1639,1551,12834,12833,29988,29989,29989,29990,29998,29985]} 1. e4 {[%emt 0:00:04]} c5 {[%emt 0:01:22]} 2. Nf3 {[%emt 0:00:12]} Nc6 {[%emt 0:00:03]} 3. d4 {[%emt 0:01:54]} cxd4 {[%emt 0:00:04]} 4. Nxd4 {[%emt 0:00:03]} Nf6 {[%emt 0:00:05]} 5. Nc3 {[%emt 0:00:03]} e5 {[%emt 0:00:03]} 6. Ndb5 {[%emt 0:00:03]} d6 {[%emt 0:00:05]} 7. Bg5 {[%emt 0:00:11]} a6 {[%emt 0:00:05]} 8. Na3 {[%emt 0:00:03]} b5 {[%emt 0:00:04]} 9. Nd5 {[%emt 0:00:03]} Be7 {[%emt 0:00:02]} 10. Bxf6 {[%emt 0:00:05]} Bxf6 {[%emt 0:00:05]} 11. c3 {[%emt 0:00:03]} Rb8 {[%emt 0:00:04]} 12. Nc2 {[%emt 0:00:04]} Bg5 {[%emt 0:00:03]} 13. a4 {[%emt 0:00:22]} bxa4 {[%emt 0:00:05] B33: Sicilian: Pelikan and Sveshnikov Variations.} 14. Ncb4 {[%emt 0:00:03]} Nxb4 {[%emt 0:00:11]} 15. cxb4 {[%emt 0:00:04]} O-O {[%emt 0:00:17] The position is equal.} 16. Rxa4 {[%emt 0:00:45]} a5 {[%emt 0:00:03]} 17. b5 {[%emt 0:00:31]} (17. Rxa5 $2 Rxb4 18. Ra4 Rxb2 $19) (17. bxa5 Rxb2 18. Bd3 Bd7 $17) 17... Bd7 {[%emt 0:00:07] [#]} 18. h4 {[%emt 0:00:06]} Bh6 {[%emt 0:03:27]} (18... Be7 $142) 19. Nc3 $11 {[%emt 0:01:25]} d5 {[%emt 0:00:02] Repels Bc4} 20. exd5 {[%emt 0:00:09]} Kh8 {[%emt 0:00:09]} 21. Be2 {[%emt 0:01:51]} f5 {[%emt 0:01:10]} 22. g3 {[%emt 0:18:03] [#]} (22. O-O $1 $14 {is more appropriate.}) 22... Rb6 $146 {[%emt 0:01:03]} (22... f4 $11 {feels stronger.}) ({Predecessor:} 22... f4 23. g4 f3 24. Bxf3 Bc1 25. Qxc1 Rxf3 26. Re4 Qb6 27. Qd2 Rbf8 28. Rh2 Bxb5 {½-½ Miron,L (2498)-Nisipeanu,L (2633) ROM-chT Oradea 2022 (7.5)}) 23. O-O $14 {[%emt 0:06:13]} e4 {[%emt 0:03:04]} ({Better is} 23... f4 $14) 24. d6 {[%emt 0:27:27]} (24. Rxa5 $16 {aiming for Ra6.} e3 25. Ra6) 24... Be6 {[%emt 0:42:15]} (24... Bf4 $1 $11 {keeps the balance.}) 25. Rd4 $16 {[%emt 0:04:08]} (25. Rxa5 Rxd6 26. Qa1 Rd2 $15) 25... Rf6 $2 {[%emt 0:19:22] A mistake that costs the game.} (25... Rb8 $16 26. Bc4 Bd7) 26. d7 {[%emt 0:07:23]} Bf4 {[%emt 0:03:48]} 27. Nd5 {[%emt 0:04:13]} (27. gxf4 $2 Rg6+ $19) 27... Bxd5 {[%emt 0:01:25]} 28. Rxd5 {[%emt 0:00:03]} Rbd6 {[%emt 0:02:20] Black is weak on the light squares} 29. Rxd6 {[%emt 0:28:14]} (29. gxf4 $2 Rg6+ $19) 29... Rxd6 {[%emt 0:08:50]} (29... Bxd6 $142 30. Qd5 Qxd7) 30. Qb3 {[%emt 0:06:08]} Be5 {[%emt 0:01:39]} (30... Bd2 $142 31. b6 Rxd7) 31. Qf7 {[%emt 0:00:29]} (31. Rc1 $142 Rxd7 32. b6) 31... Rxd7 $18 {[%emt 0:00:11]} 32. Qxf5 {[%emt 0:00:05]} Bxb2 {[%emt 0:01:16]} (32... Qe7 33. Qxe4 Bxb2 34. Qa8+ Rd8 35. Qxa5 Bd4) 33. Rb1 {[%emt 0:04:14]} ({Weaker is} 33. Qxe4 Re7 34. Qc2 Bd4 $18) 33... Rd2 {[%emt 0:01:45] [#]} (33... g6 34. Qxe4 Re7) 34. b6 $1 {[%emt 0:00:50][%cal Ob6b7] Hoping for b7!} (34. Qxe4 a4 $16) 34... g6 {[%emt 0:00:56]} 35. Qf4 {[%emt 0:00:54][%cal Ob6b7] Threatening mate with b7!} a4 {[%emt 0:09:03] [#]} 36. b7 $1 {[%emt 0:00:13] White mates.} a3 {[%emt 0:00:07]} (36... Kg7 37. b8=Q) 37. b8=Q {[%emt 0:00:11]} a2 {[%emt 0:00:04]} 38. Qxb2+ {[%emt 0:01:42] Weighted Error Value: White=0.30/Black=0.72} 1-0